fUST/lending_fUST_20250311
["ID","MTS","AMOUNT","RATE_DAILY","PERIOD"]
[355866952,1741653042382,-538.13232083,0.0004658,120]
[355866953,1741653042394,-538.13232083,0.0004658,120]
[355866954,1741653042407,-538.13232083,0.0004658,120]
[355866955,1741653042419,-538.13232083,0.0004658,120]
[355866957,1741653042432,-538.13232083,0.0004658,120]
[355866959,1741653042444,-538.13232083,0.0004658,120]
[355866962,1741653042457,-538.13232083,0.0004658,120]
[355866964,1741653042469,-538.13232083,0.0004658,120]
[355866967,1741653042481,-538.13232083,0.0004658,120]
[355866970,1741653042499,-538.13232083,0.0004658,120]
[355866974,1741653042512,-538.13232083,0.0004658,120]
[355866976,1741653042524,-538.13232083,0.0004658,120]
[355866978,1741653042538,-538.13232083,0.0004658,120]
[355866981,1741653042550,-538.13232083,0.0004658,120]
[355866982,1741653042562,-538.13232083,0.0004658,120]
[355866983,1741653042574,-538.13232083,0.0004658,120]
[355866984,1741653042585,-538.13,0.0004658,120]
[355866985,1741653042597,-1255.64208194,0.0004658,120]
[355866986,1741653042608,-1255.64208194,0.0004658,120]
[355866987,1741653042626,-1255.64208194,0.0004658,120]
[355866989,1741653042638,-1255.64208194,0.0004658,120]
[355866990,1741653042652,-1255.64208194,0.0004658,120]
[355866991,1741653042667,-1255.64208194,0.0004658,120]
[355866992,1741653042678,-1255.64208194,0.0004658,120]
[355866993,1741653042689,-1255.64208194,0.0004658,120]
[355866994,1741653042700,-1255.64208194,0.0004658,120]
[355866995,1741653042712,-1255.64208194,0.0004658,120]
[355866996,1741653042723,-1255.64208194,0.0004658,120]
[355866997,1741653042735,-1255.64208194,0.0004658,120]
[355866998,1741653042751,-1255.64208194,0.0004658,120]
[355866999,1741653042762,-1255.64208194,0.0004658,120]
[355867000,1741653042774,-1255.64208194,0.0004658,120]
[355867001,1741653042784,-1255.64208194,0.0004658,120]
[355867002,1741653042795,-1255.64208194,0.0004658,120]
[355867003,1741653042806,-1255.64208194,0.0004658,120]
[355867004,1741653042817,-1255.64208194,0.0004658,120]
[355867005,1741653042828,-1717.20906603,0.0004658,120]
[355867006,1741653042838,-1717.20906603,0.0004658,120]
[355867007,1741653042849,-1717.20906603,0.0004658,120]
[355867008,1741653042860,-1717.20906603,0.0004658,120]
[355867009,1741653042871,-1717.20906603,0.0004658,120]
[355867010,1741653042882,-1717.20906603,0.0004658,120]
[355867011,1741653042893,-1717.20906603,0.0004658,120]
[355867012,1741653042904,-1717.20906603,0.0004658,120]
[355867013,1741653042915,-1717.20906603,0.0004658,120]
[355867014,1741653042927,-1717.20906603,0.0004658,120]
[355867015,1741653042942,-1717.20906603,0.0004658,120]
[355867016,1741653042954,-1717.20906603,0.0004658,120]
[355867017,1741653042965,-1717.20906603,0.0004658,120]
[355867018,1741653042979,-1717.20906603,0.0004658,120]
[355867019,1741653042996,-1717.20906603,0.0004658,120]
[355867020,1741653043008,-1717.20906603,0.0004658,120]
[355867021,1741653043019,-1717.20906603,0.0004658,120]
[355867022,1741653043031,-1717.20906603,0.0004658,120]
[355867023,1741653043046,-1717.20906603,0.0004658,120]
[355867024,1741653043057,-1717.2,0.0004658,120]
[355867025,1741653043069,-4006.82115407,0.0004658,120]
[355867026,1741653043081,-4006.82115407,0.0004658,120]
[355867027,1741653043093,-4006.82115407,0.0004658,120]
[355867028,1741653043104,-4006.82115407,0.0004658,120]
[355867029,1741653043116,-4006.82115407,0.0004658,120]
[355867030,1741653043128,-4006.82115407,0.0004658,120]
[355867031,1741653043140,-4006.82115407,0.0004658,120]
[355867039,1741653043293,-4006.82115407,0.0004658,120]
[355867042,1741653043327,-4006.82115407,0.0004658,120]
[355867045,1741653043338,-4006.82115407,0.0004658,120]
[355867047,1741653043350,-4006.82115407,0.0004658,120]
[355867049,1741653043362,-4006.82115407,0.0004658,120]
[355867051,1741653043374,-4006.82115407,0.0004658,120]
[355867053,1741653043387,-4006.82115407,0.0004658,120]
[355867055,1741653043400,-4006.82115407,0.0004658,120]
[355867057,1741653043413,-4006.82115407,0.0004658,120]
[355867059,1741653043425,-4006.82115407,0.0004658,120]
[355867061,1741653043437,-4006.82115407,0.0004658,120]
[355867062,1741653043450,-4006.82115407,0.0004658,120]
[355867063,1741653043462,-899.52021211,0.0004658,120]
[355867065,1741653043476,-899.52021211,0.0004658,120]
[355867067,1741653043494,-899.52021211,0.0004658,120]
[355867069,1741653043508,-899.52021211,0.0004658,120]
[355867071,1741653043521,-899.52021211,0.0004658,120]
[355867073,1741653043533,-899.52021211,0.0004658,120]
[355867074,1741653043545,-899.52021211,0.0004658,120]
[355867075,1741653043557,-899.52021211,0.0004658,120]
[355867076,1741653043571,-899.52021211,0.0004658,120]
[355867077,1741653043583,-899.52021211,0.0004658,120]
[355867078,1741653043595,-899.52021211,0.0004658,120]
[355867079,1741653043606,-899.52021211,0.0004658,120]
[355867080,1741653043622,-899.52021211,0.0004658,120]
[355867081,1741653043633,-899.52021211,0.0004658,120]
[355867082,1741653043644,-899.52021211,0.0004658,120]
[355867083,1741653043656,-899.52021211,0.0004658,120]
[355867084,1741653043671,-899.52021211,0.0004658,120]
[355867085,1741653043682,-899.52021211,0.0004658,120]
[355867086,1741653043694,-899.52021211,0.0004658,120]
[355867087,1741653043706,-899.52,0.0004658,120]
[355867088,1741653043717,-2098.88049491,0.0004658,120]
[355867089,1741653043727,-2098.88049491,0.0004658,120]
[355867090,1741653043745,-2098.88049491,0.0004658,120]
[355867091,1741653043758,-2098.88049491,0.0004658,120]
[355867092,1741653043774,-2098.88049491,0.0004658,120]
[355867093,1741653043786,-2098.88049491,0.0004658,120]
[355867094,1741653043799,-2098.88049491,0.0004658,120]
[355867095,1741653043810,-2098.88049491,0.0004658,120]
[355867096,1741653043821,-2098.88049491,0.0004658,120]
[355867097,1741653043832,-2098.88049491,0.0004658,120]
[355867098,1741653043844,-2098.88049491,0.0004658,120]
[355867099,1741653043856,-2098.88049491,0.0004658,120]
[355867100,1741653043868,-2098.88049491,0.0004658,120]
[355867101,1741653043880,-2098.88049491,0.0004658,120]
[355867102,1741653043891,-2098.88049491,0.0004658,120]
[355867103,1741653043903,-2098.88049491,0.0004658,120]
[355867104,1741653043915,-2098.88049491,0.0004658,120]
[355867105,1741653043926,-2098.88049491,0.0004658,120]
[355867106,1741653043938,-2098.88049491,0.0004658,120]
[355867107,1741653043951,-693.8510917,0.00046597,2]
[355867108,1741653043963,-759.54,0.000466,30]
[355867109,1741653043979,-151.0,0.000466,26]
[355867110,1741653043993,-719.52358209,0.00046652,2]
[355867111,1741653044005,-167.7966245,0.00046697,30]
[355867112,1741653044016,-167.7966245,0.00046697,30]
[355867113,1741653044027,-3333.82668969,0.000467,120]
[355867114,1741653044038,-10632.04012752,0.000467,2]
[355867115,1741653044050,-504.4287704,0.00046704,30]
[355867116,1741653044061,-746.14595463,0.00046707,2]
[355867117,1741653044073,-155.3619476,0.0004674,30]
[355867118,1741653044084,-773.75335495,0.00046762,2]
[355867119,1741653044096,-158.68167274,0.00046767,120]
[355867120,1741653044107,-160.54363363,0.00046773,10]
[355867121,1741653044118,-500.0,0.00046773,10]
[355867122,1741653044129,-500.0,0.00046773,10]
[355867123,1741653044140,-500.0,0.00046773,10]
[355867124,1741653044150,-500.0,0.00046773,10]
[355867125,1741653044161,-500.0,0.00046773,10]
[355867126,1741653044171,-500.0,0.00046773,10]
[355867127,1741653044182,-500.0,0.00046773,10]
[355867128,1741653044193,-527.78516767,0.00046773,7]
[355867129,1741653044205,-500.0,0.00046773,10]
[355867130,1741653044216,-503.00694321,0.00046773,10]
[355867131,1741653044227,-500.98963645,0.00046773,10]
[355867132,1741653044237,-501.41800639,0.00046773,10]
[355867133,1741653044252,-500.0,0.00046773,10]
[355867134,1741653044263,-171443.13156899,0.000468,30]
[355867135,1741653044273,-1255.64,0.000468,120]
[355867136,1741653044284,-4006.82,0.000468,120]
[355867137,1741653044294,-2098.88,0.000468,120]
[355867138,1741653044304,-802.38222908,0.00046817,2]
[355867139,1741653044314,-832.07037156,0.00046872,2]
[355867140,1741653044324,-150.0,0.00046873,10]
[355867141,1741653044333,-150.0,0.00046873,10]
[355867142,1741653044343,-213.98107202,0.00046873,10]
[355867143,1741653044354,-1747.47657539,0.0004689,4]
[355867144,1741653044364,-151.0,0.000469,21]
[355867145,1741653044374,-487420.6083229,0.000469,7]
[355867146,1741653044384,-158.68167274,0.00046904,120]
[355867147,1741653044393,-156.587,0.00046925,2]
[355867148,1741653044404,-862.8569753,0.00046927,2]
[355867149,1741653044414,-150.0,0.00046973,10]
[355867150,1741653044424,-894.78268339,0.00046982,2]
[355867151,1741653044434,-1987.43236138,0.00047,120]
[355867152,1741653044443,-1000.0,0.00047,22]
[355867153,1741653044453,-343051.19039235,0.00047,120]
[355867154,1741653044462,-187.8958351,0.00047,120]
[355867155,1741653044471,-600.0,0.00047017,2]
[355867156,1741653044482,-151.0,0.00047019,120]
[355867157,1741653044498,-151.0,0.00047019,120]
[355867158,1741653044507,-151.0,0.00047019,120]
[355867159,1741653044517,-927.88964268,0.00047037,2]
[355867160,1741653044527,-3260.0,0.0004704,90]
[355867161,1741653044536,-3260.0,0.0004704,90]
[355867162,1741653044545,-3260.0,0.0004704,90]
[355867163,1741653044555,-3260.0,0.0004704,90]
[355867164,1741653044564,-340.10296478,0.0004704,90]
[355867165,1741653044574,-962.22155946,0.00047092,2]
[355867166,1741653044583,-100925.11963579,0.00047109,2]
[355867167,1741653044592,-151.0,0.00047119,120]
[355867168,1741653044602,-151.0,0.00047119,120]
[355867169,1741653044613,-151.0,0.00047119,120]
[355867170,1741653044628,-151.0,0.00047119,120]
[355867171,1741653044639,-151.0,0.00047119,120]
[355867172,1741653044649,-151.0,0.00047119,120]
[355867173,1741653044660,-151.0,0.00047119,120]
[355867174,1741653044672,-151.0,0.00047119,120]
[355867175,1741653044684,-439.074452,0.00047119,110]
[355867176,1741653044699,-439.074452,0.00047119,110]
[355867177,1741653044711,-439.074452,0.00047119,110]
[355867178,1741653044723,-439.074452,0.00047119,110]
[355867179,1741653044733,-439.074452,0.00047119,110]
[355867180,1741653044750,-439.074452,0.00047119,110]
[355867181,1741653044761,-439.074452,0.00047119,110]
[355867182,1741653044772,-439.074452,0.00047119,110]
[355867183,1741653044784,-439.074452,0.00047119,110]
[355867184,1741653044795,-439.074452,0.00047119,110]
[355867185,1741653044807,-439.074452,0.00047119,110]
[355867186,1741653044819,-439.074452,0.00047119,110]
[355867187,1741653044829,-439.074452,0.00047119,110]
[355867188,1741653044839,-439.074452,0.00047119,110]
[355867189,1741653044850,-439.074452,0.00047119,110]
[355867190,1741653044860,-439.074452,0.00047119,110]
[355867191,1741653044870,-151.0,0.00047119,120]
[355867192,1741653044880,-151.0,0.00047119,120]
[355867193,1741653044890,-151.0,0.00047119,120]
[355867194,1741653044901,-151.0,0.00047119,120]
[355867195,1741653044912,-151.0,0.00047119,120]
[355867196,1741653044922,-151.0,0.00047119,120]
[355867197,1741653044933,-151.0,0.00047119,120]
[355867198,1741653044943,-151.0,0.00047119,120]
[355867199,1741653044953,-213.076452,0.00047119,120]
[355867200,1741653044962,-151.0,0.00047119,120]
[355867201,1741653044973,-151.0,0.00047119,120]
[355867202,1741653044983,-151.0,0.00047119,120]
[355867203,1741653044998,-151.0,0.00047119,120]
[355867204,1741653045009,-151.0,0.00047119,120]
[355867205,1741653045020,-151.0,0.00047119,120]
[355867206,1741653045031,-185.937293,0.00047119,120]
[355867207,1741653045040,-439.074452,0.0004712,110]
[355867208,1741653045050,-439.074452,0.0004712,110]
[355867209,1741653045060,-500.0,0.00047123,120]
[355867210,1741653045070,-997.82375716,0.00047147,2]
[355867211,1741653045080,-500.0,0.00047173,10]
[355867212,1741653045091,-1032.544579,0.000472,57]
[355867213,1741653045101,-1034.74323617,0.00047202,2]
[355867214,1741653045112,-1073.02873591,0.00047257,2]
[355867215,1741653045123,-606.36,0.000473,30]
[355867216,1741653045134,-151.0,0.000473,26]
[355867217,1741653045144,-1112.73079914,0.00047312,2]
[355867218,1741653045154,-1153.9018387,0.00047367,2]
[355867219,1741653045164,-161.03017844,0.0004737,120]
[355867220,1741653045319,-158.68167274,0.0004737,120]
[355867221,1741653045331,-158.68167274,0.0004737,120]
[355867222,1741653045343,-158.68167274,0.0004737,120]
[355867223,1741653045353,-158.68167274,0.0004737,120]
[355867224,1741653045364,-759.54,0.000474,30]
[355867225,1741653045374,-150.72251828,0.00047421,10]
[355867226,1741653045385,-250.0,0.00047421,10]
[355867227,1741653045395,-1800.0,0.00047422,2]
[355867228,1741653045405,-7188.49,0.00047426,120]
[355867229,1741653045416,-539.66872395,0.00047428,28]
[355867231,1741653045426,-162.380719,0.00047473,2]
[355867232,1741653045438,-600.0,0.00047507,2]
[355867233,1741653045448,-153.61620045,0.00047521,10]
[355867234,1741653045459,-559.2277934,0.00047526,30]
[355867235,1741653045469,-559.2277934,0.00047526,30]
[355867236,1741653045480,-559.2277934,0.00047526,30]
[355867237,1741653045491,-335.593249,0.00047526,30]
[355867238,1741653045501,-559.2277934,0.00047526,30]
[355867239,1741653045512,-559.2277934,0.00047526,30]
[355867240,1741653045522,-330.1317113,0.00047526,30]
[355867241,1741653045532,-559.2277934,0.00047526,30]
[355867242,1741653045542,-559.2277934,0.00047526,30]
[355867243,1741653045553,-559.2277934,0.00047526,30]
[355867244,1741653045563,-559.2277934,0.00047526,30]
[355867245,1741653045573,-559.2277934,0.00047526,30]
[355867246,1741653045583,-439.074452,0.00047526,110]
[355867247,1741653045593,-439.074452,0.00047526,110]
[355867249,1741653045603,-151.0,0.00047528,120]
[355867250,1741653045613,-151.0,0.00047528,120]
[355867252,1741653045628,-255.088096,0.00047528,120]
[355867253,1741653045638,-1067.533505,0.00047528,120]
[355867255,1741653045648,-1067.533505,0.00047528,120]
[355867257,1741653045659,-1067.533505,0.00047528,120]
[355867259,1741653045671,-1067.533505,0.00047528,120]
[355867261,1741653045682,-284.671364,0.00047528,120]
[355867263,1741653045692,-284.671364,0.00047528,120]
[355867265,1741653045703,-284.671364,0.00047528,120]
[355867267,1741653045714,-284.671364,0.00047528,120]
[355867269,1741653045725,-284.671364,0.00047528,120]
[355867271,1741653045735,-284.671364,0.00047528,120]
[355867273,1741653045750,-284.671364,0.00047528,120]
[355867275,1741653045761,-284.671364,0.00047528,120]
[355867277,1741653045771,-284.671364,0.00047528,120]
[355867278,1741653045782,-284.671364,0.00047528,120]
[355867280,1741653045792,-284.671364,0.00047528,120]
[355867283,1741653045803,-284.671364,0.00047528,120]
[355867284,1741653045814,-1067.533505,0.00047529,120]
[355867287,1741653045825,-3372.4650541,0.00047529,4]
[355867288,1741653045836,-284.671364,0.00047529,120]
[355867289,1741653045847,-284.671364,0.00047529,120]
[355867290,1741653045857,-158.68167274,0.00047534,120]
[355867291,1741653045868,-1070.82,0.0004756,120]
[355867292,1741653045878,-284.671364,0.000476,120]
[355867293,1741653045889,-284.671364,0.000476,120]
[355867294,1741653045900,-151.0,0.000476,30]
[355867295,1741653045910,-416.66666667,0.000476,30]
[355867296,1741653045920,-500.0,0.00047671,120]
[355867297,1741653045930,-1000.0,0.000477,57]
[355867298,1741653045941,-800.0,0.0004771,120]
[355867299,1741653045951,-800.0,0.00047712,120]
[355867300,1741653045961,-199.321884,0.00047725,120]
[355867301,1741653045971,-199.321884,0.00047725,120]
[355867302,1741653045981,-800.0,0.00047758,120]
[355867303,1741653045993,-1067.533499,0.00047758,120]
[355867304,1741653046003,-199.321884,0.00047763,120]
[355867305,1741653046014,-199.321884,0.00047763,120]
[355867306,1741653046024,-284.671364,0.00047763,120]
[355867307,1741653046033,-284.671364,0.00047763,120]
[355867308,1741653046043,-449.003411,0.00047769,120]
[355867310,1741653046053,-199.321884,0.00047769,120]
[355867311,1741653046063,-199.321884,0.00047769,120]
[355867312,1741653046073,-284.671364,0.00047769,120]
[355867313,1741653046083,-284.671359,0.00047769,120]
[355867315,1741653046093,-151.0,0.00047773,120]
[355867316,1741653046103,-151.0,0.00047773,120]
[355867317,1741653046113,-151.0,0.00047773,120]
[355867318,1741653046122,-449.003411,0.00047773,120]
[355867319,1741653046132,-199.321884,0.00047773,120]
[355867320,1741653046142,-199.321884,0.00047773,120]
[355867321,1741653046152,-151.0,0.00047779,120]
[355867322,1741653046161,-151.0,0.00047779,120]
[355867323,1741653046171,-151.0,0.00047779,120]
[355867324,1741653046181,-151.0,0.00047779,120]
[355867325,1741653046191,-151.0,0.00047779,120]
[355867326,1741653046201,-151.0,0.00047779,120]
[355867327,1741653046211,-151.0,0.00047779,120]
[355867328,1741653046221,-151.0,0.00047779,120]
[355867329,1741653046231,-151.0,0.00047779,120]
[355867330,1741653046244,-225.00003,0.00047779,120]
[355867331,1741653046254,-151.0,0.00047779,120]
[355867332,1741653046264,-151.0,0.00047779,120]
[355867333,1741653046274,-151.0,0.00047779,120]
[355867334,1741653046283,-449.003411,0.00047779,120]
[355867335,1741653046293,-449.003411,0.00047779,120]
[355867336,1741653046303,-449.003411,0.00047779,120]
[355867337,1741653046312,-449.003411,0.00047779,120]
[355867338,1741653046322,-449.003411,0.00047779,120]
[355867339,1741653046332,-449.00341,0.00047779,120]
[355867340,1741653046342,-199.321884,0.00047779,120]
[355867341,1741653046351,-199.321884,0.00047779,120]
[355867342,1741653046361,-199.321884,0.00047779,120]
[355867343,1741653046371,-199.321884,0.00047779,120]
[355867344,1741653046380,-199.321884,0.00047779,120]
[355867345,1741653046390,-199.321884,0.00047779,120]
[355867346,1741653046399,-199.321884,0.00047779,120]
[355867347,1741653046409,-199.321884,0.00047779,120]
[355867348,1741653046419,-199.321884,0.00047779,120]
[355867349,1741653046429,-199.321884,0.00047779,120]
[355867350,1741653046439,-199.321884,0.00047779,120]
[355867351,1741653046449,-199.321886,0.00047779,120]
[355867352,1741653046459,-152.000974,0.0004778,120]
[355867353,1741653046469,-151.0,0.0004778,120]
[355867354,1741653046479,-151.0,0.0004778,120]
[355867355,1741653046491,-198.720726,0.0004778,120]
[355867356,1741653046501,-198.720726,0.0004778,120]
[355867357,1741653046511,-3000.0,0.0004778,120]
[355867358,1741653046521,-2893.77922947,0.00047794,2]
[355867359,1741653046531,-151.0,0.00047794,120]
[355867360,1741653046541,-198.720726,0.00047794,120]
[355867361,1741653046551,-198.720726,0.00047794,120]
[355867362,1741653046562,-151.0,0.000478,24]
[355867363,1741653046572,-151.0,0.000478,27]
[355867364,1741653046581,-292.36772071,0.000478,120]
[355867365,1741653046591,-3000.0,0.00047806,2]
[355867366,1741653046601,-151.0,0.00047815,120]
[355867367,1741653046611,-198.720726,0.00047815,120]
[355867368,1741653046626,-198.720726,0.00047815,120]
[355867369,1741653046636,-151.0,0.00047854,120]
[355867370,1741653046646,-198.720726,0.00047854,120]
[355867371,1741653046655,-198.720726,0.00047854,120]
[355867372,1741653046667,-1000.0,0.00047863,2]
[355867373,1741653046676,-1000.0,0.00047863,2]
[355867374,1741653046686,-1000.0,0.00047863,2]
[355867375,1741653046696,-1000.0,0.00047863,2]
[355867376,1741653046706,-1000.0,0.00047863,2]
[355867377,1741653046716,-1000.0,0.00047863,2]
[355867378,1741653046725,-1000.0,0.00047863,2]
[355867379,1741653046735,-1000.0,0.00047863,2]
[355867380,1741653046748,-566.56747208,0.00047863,2]
[355867381,1741653046758,-198.720726,0.00047864,120]
[355867382,1741653046768,-198.720726,0.00047864,120]
[355867383,1741653046778,-151.0,0.0004787,120]
[355867384,1741653046790,-284.591219,0.0004787,120]
[355867385,1741653046800,-284.591219,0.0004787,120]
[355867386,1741653046810,-151.0,0.0004787,120]
[355867387,1741653046820,-151.0,0.0004787,120]
[355867388,1741653046829,-152.88036051,0.00047873,10]
[355867389,1741653046839,-524.34274224,0.00047873,10]
[355867390,1741653046848,-500.0,0.00047873,10]
[355867391,1741653046858,-389.52564847,0.00047873,10]
[355867392,1741653047006,-500.0,0.00047873,10]
[355867393,1741653047017,-151.0,0.00047873,120]
[355867394,1741653047026,-151.0,0.00047873,120]
[355867395,1741653047037,-284.591219,0.00047873,120]
[355867396,1741653047046,-284.591219,0.00047873,120]
[355867397,1741653047056,-284.591219,0.00047873,120]
[355867398,1741653047066,-284.591219,0.00047873,120]
[355867399,1741653047075,-284.591219,0.00047873,120]
[355867400,1741653047085,-284.591219,0.00047873,120]
[355867401,1741653047094,-284.591219,0.00047873,120]
[355867402,1741653047103,-284.591219,0.00047873,120]
[355867403,1741653047113,-284.591219,0.00047873,120]
[355867404,1741653047123,-284.591219,0.00047873,120]
[355867405,1741653047132,-284.591219,0.00047873,120]
[355867406,1741653047142,-284.591219,0.00047873,120]
[355867407,1741653047152,-151.0,0.00047873,120]
[355867408,1741653047161,-151.0,0.00047873,120]
[355867409,1741653047171,-151.0,0.00047873,120]
[355867410,1741653047180,-172.868267,0.00047873,120]
[355867411,1741653047190,-198.720726,0.00047873,120]
[355867412,1741653047199,-198.720726,0.00047873,120]
[355867413,1741653047210,-198.720726,0.00047873,120]
[355867414,1741653047220,-198.720726,0.00047873,120]
[355867415,1741653047231,-198.720726,0.00047873,120]
[355867416,1741653047244,-198.720726,0.00047873,120]
[355867417,1741653047256,-198.720726,0.00047873,120]
[355867418,1741653047266,-198.720726,0.00047873,120]
[355867419,1741653047277,-198.720726,0.00047873,120]
[355867420,1741653047287,-198.720726,0.00047873,120]
[355867421,1741653047297,-151.0,0.00047873,120]
[355867422,1741653047307,-151.0,0.00047873,120]
[355867423,1741653047317,-163.541863,0.00047873,120]
[355867424,1741653047327,-284.591219,0.00047874,120]
[355867425,1741653047336,-284.591219,0.00047874,120]
[355867426,1741653047346,-284.591219,0.00047874,120]
[355867427,1741653047356,-284.591219,0.00047874,120]
[355867428,1741653047366,-153.988223,0.00047875,120]
[355867429,1741653047375,-284.591219,0.00047875,120]
[355867430,1741653047385,-284.591222,0.00047875,120]
[355867431,1741653047395,-560.607444,0.00047875,120]
[355867432,1741653047404,-560.607444,0.00047875,120]
[355867433,1741653047414,-560.607444,0.00047875,120]
[355867434,1741653047424,-560.607444,0.00047875,120]
[355867435,1741653047433,-560.607444,0.00047875,120]
[355867436,1741653047443,-560.607444,0.00047875,120]
[355867437,1741653047453,-560.607444,0.00047879,120]
[355867438,1741653047463,-560.607444,0.00047879,120]
[355867439,1741653047473,-800.0,0.0004788,120]
[355867440,1741653047482,-500.0,0.00047883,120]
[355867441,1741653047495,-151.0,0.00047885,120]
[355867442,1741653047504,-151.0,0.00047885,120]
[355867443,1741653047514,-169.122812,0.00047885,120]
[355867444,1741653047525,-169.122812,0.00047885,120]
[355867445,1741653047535,-190.291216,0.00047885,120]
[355867446,1741653047544,-190.291216,0.00047885,120]
[355867447,1741653047554,-190.291216,0.00047885,120]
[355867448,1741653047564,-190.291216,0.00047885,120]
[355867449,1741653047574,-169.122812,0.00047886,120]
[355867450,1741653047583,-169.122812,0.00047886,120]
[355867451,1741653047593,-151.0,0.00047887,120]
[355867452,1741653047602,-151.0,0.00047887,30]
[355867453,1741653047612,-151.0,0.00047887,30]
[355867454,1741653047626,-151.0,0.00047887,120]
[355867455,1741653047635,-169.122812,0.00047887,120]
[355867456,1741653047645,-169.122812,0.00047887,120]
[355867457,1741653047655,-190.291216,0.00047887,120]
[355867458,1741653047667,-190.291216,0.00047887,120]
[355867459,1741653047678,-151.0,0.00047888,120]
[355867460,1741653047688,-151.0,0.00047888,30]
[355867461,1741653047700,-151.0,0.00047888,30]
[355867462,1741653047720,-151.0,0.00047888,120]
[355867463,1741653047746,-169.122812,0.00047888,120]
[355867464,1741653047770,-169.122812,0.00047888,120]
[355867465,1741653047794,-190.291216,0.00047888,120]
[355867466,1741653047819,-190.291216,0.00047888,120]
[355867467,1741653047839,-560.607444,0.00047888,120]
[355867468,1741653047862,-560.607444,0.00047888,120]
[355867469,1741653047879,-159.665694,0.00047896,120]
[355867470,1741653047898,-203.135811,0.00047898,120]
[355867471,1741653047920,-152.222656,0.00047898,120]
[355867472,1741653047944,-151.0,0.00047898,120]
[355867473,1741653047959,-151.0,0.00047898,120]
[355867474,1741653047979,-151.0,0.00047898,30]
[355867475,1741653048000,-151.0,0.00047898,30]
[355867476,1741653048018,-151.0,0.00047898,90]
[355867477,1741653048035,-234.201,0.00047898,120]
[355867478,1741653048055,-169.122812,0.00047898,120]
[355867479,1741653048073,-169.122812,0.00047898,120]
[355867480,1741653048092,-190.291216,0.00047898,120]
[355867481,1741653048110,-190.291216,0.00047898,120]
[355867482,1741653048129,-202.92,0.00047898,30]
[355867483,1741653048147,-1070.89,0.00047898,2]
[355867484,1741653048165,-1070.89,0.00047898,2]
[355867487,1741653048185,-1070.89,0.00047898,2]
[355867488,1741653048203,-1070.89,0.00047898,2]
[355867489,1741653048224,-1070.89,0.00047898,2]
[355867490,1741653048245,-1070.89,0.00047898,2]
[355867491,1741653048263,-1070.89,0.00047898,2]
[355867492,1741653048280,-1070.89,0.00047898,2]
[355867494,1741653048298,-1070.89,0.00047898,2]
[355867496,1741653048315,-1070.89,0.00047898,2]
[355867497,1741653048336,-1070.89,0.00047898,2]
[355867499,1741653048356,-1070.89,0.00047898,2]
[355867500,1741653048374,-1070.89,0.00047898,2]
[355867501,1741653048393,-1070.89,0.00047898,2]
[355867503,1741653048411,-1070.89,0.00047898,2]
[355867505,1741653048430,-1070.89,0.00047898,2]
[355867507,1741653048451,-1070.89,0.00047898,2]
[355867510,1741653048471,-1070.89,0.00047898,2]
[355867511,1741653048495,-1070.89,0.00047898,2]
[355867512,1741653048516,-1070.89,0.00047898,2]
[355867513,1741653048536,-1070.89,0.00047898,2]
[355867514,1741653048555,-1070.89,0.00047898,2]
[355867515,1741653048574,-1070.89,0.00047898,2]
[355867516,1741653048594,-1071.02629245,0.00047898,2]
[355867517,1741653048614,-560.607444,0.00047898,120]
[355867518,1741653048636,-560.607444,0.00047898,120]
[355867519,1741653048655,-151.0,0.000479,26]
[355867520,1741653048689,-2441.52756535,0.000479,120]
[355867521,1741653048730,-158348.72982314,0.00047906,2]
[355867522,1741653048761,-151.0,0.00047915,120]
[355867523,1741653048788,-151.0,0.00047915,120]
[355867524,1741653048814,-151.0,0.00047915,30]